{"text_format":"1","workbook":"xlsx","n_sheets":3,"sheets":["Członkowie klastra","Podsumowanie","Ekran_powitalny"],"not_rendered":{"charts":0,"images":0,"macros":1,"external_links":0,"defined_names":1,"comments":0,"pivot_tables":0},"unopened":[],"bounds":{"document_bytes":16777216,"sheet_cells":100000,"rows_first":2000,"rows_last":500,"rows_between":2000,"halvings":0,"cell_chars":16384,"cell_head_chars":4096},"cells_cut":0,"cells_raw":0,"read":"whole","date_system":"1900"}

{"sheet":"Członkowie klastra","index":0,"n_rows":1002,"n_cols":14,"rows_kept":1002,"cut":false,"hidden":true,"merged":[[0,7,0,12],[0,3,0,4]]}
[null,null,null,"data złożenia wniosku:",null,null,null,"Wypełniane wyłącznie dla przedsiębiorców"]
["L.p.","Nazwa członka klastra","NIP","Województwo","Data członkostwa","Członkowstwo powyżej roku","Status przedsiębiorcy","Powiązania/ partnerstwa","Zatrudnienie 1","Zatrudnienie 2","Nakłady B+R","Innowacje","Przychody z eksportu"]
[1,null,null,null,null,null,null,null,null,null,null,null,null,{"$f":"IF(OR(AND(COUNTBLANK(B3:G3)<6,COUNTBLANK(B3:G3)>0),AND(COUNTBLANK(H3:M3)>0,G3=\"Tak\"),AND(COUNTBLANK(H3:M3)<6,G3=\"Nie\")),\"Uzupełnij/popraw!\",\"\")","v":""}]
[2,null,null,null,null,null,null,null,null,null,null,null,null,""]
[3,null,null,null,null,null,null,null,null,null,null,null,null,""]
[4,null,null,null,null,null,null,null,null,null,null,null,null,""]
[5,null,null,null,null,null,null,null,null,null,null,null,null,""]
[6,null,null,null,null,null,null,null,null,null,null,null,null,""]
[7]
[8]
[9]
[10]
[11]
[12]
[13]
[14]
[15]
[16]
[17]
[18]
[19]
[20]
[21]
[22]
[23]
[24]
[25]
[26]
[27]
[28]
[29]
[30]
[31]
[32]
[33]
[34]
[35]
[36]
[37]
[38]
[39]
[40]
[41]
[42]
[43]
[44]
[45]
[46]
[47]
[48]
[49]
[50]
[51]
[52]
[53]
[54]
[55]
[56]
[57]
[58]
[59]
[60]
[61]
[62]
[63]
[64]
[65]
[66]
[67]
[68]
[69]
[70]
[71]
[72]
[73]
[74]
[75]
[76]
[77]
[78]
[79]
[80]
[81]
[82]
[83]
[84]
[85]
[86]
[87]
[88]
[89]
[90]
[91]
[92]
[93]
[94]
[95]
[96]
[97]
[98]
[99]
[100]
[101]
[102]
[103]
[104]
[105]
[106]
[107]
[108]
[109]
[110]
[111]
[112]
[113]
[114]
[115]
[116]
[117]
[118]
[119]
[120]
[121]
[122]
[123]
[124]
[125]
[126]
[127]
[128]
[129]
[130]
[131]
[132]
[133]
[134]
[135]
[136]
[137]
[138]
[139]
[140]
[141]
[142]
[143]
[144]
[145]
[146]
[147]
[148]
[149]
[150]
[151]
[152]
[153]
[154]
[155]
[156]
[157]
[158]
[159]
[160]
[161]
[162]
[163]
[164]
[165]
[166]
[167]
[168]
[169]
[170]
[171]
[172]
[173]
[174]
[175]
[176]
[177]
[178]
[179]
[180]
[181]
[182]
[183]
[184]
[185]
[186]
[187]
[188]
[189]
[190]
[191]
[192]
[193]
[194]
[195]
[196]
[197]
[198]
[199]
[200]
[201]
[202]
[203]
[204]
[205]
[206]
[207]
[208]
[209]
[210]
[211]
[212]
[213]
[214]
[215]
[216]
[217]
[218]
[219]
[220]
[221]
[222]
[223]
[224]
[225]
[226]
[227]
[228]
[229]
[230]
[231]
[232]
[233]
[234]
[235]
[236]
[237]
[238]
[239]
[240]
[241]
[242]
[243]
[244]
[245]
[246]
[247]
[248]
[249]
[250]
[251]
[252]
[253]
[254]
[255]
[256]
[257]
[258]
[259]
[260]
[261]
[262]
[263]
[264]
[265]
[266]
[267]
[268]
[269]
[270]
[271]
[272]
[273]
[274]
[275]
[276]
[277]
[278]
[279]
[280]
[281]
[282]
[283]
[284]
[285]
[286]
[287]
[288]
[289]
[290]
[291]
[292]
[293]
[294]
[295]
[296]
[297]
[298]
[299]
[300]
[301]
[302]
[303]
[304]
[305]
[306]
[307]
[308]
[309]
[310]
[311]
[312]
[313]
[314]
[315]
[316]
[317]
[318]
[319]
[320]
[321]
[322]
[323]
[324]
[325]
[326]
[327]
[328]
[329]
[330]
[331]
[332]
[333]
[334]
[335]
[336]
[337]
[338]
[339]
[340]
[341]
[342]
[343]
[344]
[345]
[346]
[347]
[348]
[349]
[350]
[351]
[352]
[353]
[354]
[355]
[356]
[357]
[358]
[359]
[360]
[361]
[362]
[363]
[364]
[365]
[366]
[367]
[368]
[369]
[370]
[371]
[372]
[373]
[374]
[375]
[376]
[377]
[378]
[379]
[380]
[381]
[382]
[383]
[384]
[385]
[386]
[387]
[388]
[389]
[390]
[391]
[392]
[393]
[394]
[395]
[396]
[397]
[398]
[399]
[400]
[401]
[402]
[403]
[404]
[405]
[406]
[407]
[408]
[409]
[410]
[411]
[412]
[413]
[414]
[415]
[416]
[417]
[418]
[419]
[420]
[421]
[422]
[423]
[424]
[425]
[426]
[427]
[428]
[429]
[430]
[431]
[432]
[433]
[434]
[435]
[436]
[437]
[438]
[439]
[440]
[441]
[442]
[443]
[444]
[445]
[446]
[447]
[448]
[449]
[450]
[451]
[452]
[453]
[454]
[455]
[456]
[457]
[458]
[459]
[460]
[461]
[462]
[463]
[464]
[465]
[466]
[467]
[468]
[469]
[470]
[471]
[472]
[473]
[474]
[475]
[476]
[477]
[478]
[479]
[480]
[481]
[482]
[483]
[484]
[485]
[486]
[487]
[488]
[489]
[490]
[491]
[492]
[493]
[494]
[495]
[496]
[497]
[498]
[499]
[500]
[501]
[502]
[503]
[504]
[505]
[506]
[507]
[508]
[509]
[510]
[511]
[512]
[513]
[514]
[515]
[516]
[517]
[518]
[519]
[520]
[521]
[522]
[523]
[524]
[525]
[526]
[527]
[528]
[529]
[530]
[531]
[532]
[533]
[534]
[535]
[536]
[537]
[538]
[539]
[540]
[541]
[542]
[543]
[544]
[545]
[546]
[547]
[548]
[549]
[550]
[551]
[552]
[553]
[554]
[555]
[556]
[557]
[558]
[559]
[560]
[561]
[562]
[563]
[564]
[565]
[566]
[567]
[568]
[569]
[570]
[571]
[572]
[573]
[574]
[575]
[576]
[577]
[578]
[579]
[580]
[581]
[582]
[583]
[584]
[585]
[586]
[587]
[588]
[589]
[590]
[591]
[592]
[593]
[594]
[595]
[596]
[597]
[598]
[599]
[600]
[601]
[602]
[603]
[604]
[605]
[606]
[607]
[608]
[609]
[610]
[611]
[612]
[613]
[614]
[615]
[616]
[617]
[618]
[619]
[620]
[621]
[622]
[623]
[624]
[625]
[626]
[627]
[628]
[629]
[630]
[631]
[632]
[633]
[634]
[635]
[636]
[637]
[638]
[639]
[640]
[641]
[642]
[643]
[644]
[645]
[646]
[647]
[648]
[649]
[650]
[651]
[652]
[653]
[654]
[655]
[656]
[657]
[658]
[659]
[660]
[661]
[662]
[663]
[664]
[665]
[666]
[667]
[668]
[669]
[670]
[671]
[672]
[673]
[674]
[675]
[676]
[677]
[678]
[679]
[680]
[681]
[682]
[683]
[684]
[685]
[686]
[687]
[688]
[689]
[690]
[691]
[692]
[693]
[694]
[695]
[696]
[697]
[698]
[699]
[700]
[701]
[702]
[703]
[704]
[705]
[706]
[707]
[708]
[709]
[710]
[711]
[712]
[713]
[714]
[715]
[716]
[717]
[718]
[719]
[720]
[721]
[722]
[723]
[724]
[725]
[726]
[727]
[728]
[729]
[730]
[731]
[732]
[733]
[734]
[735]
[736]
[737]
[738]
[739]
[740]
[741]
[742]
[743]
[744]
[745]
[746]
[747]
[748]
[749]
[750]
[751]
[752]
[753]
[754]
[755]
[756]
[757]
[758]
[759]
[760]
[761]
[762]
[763]
[764]
[765]
[766]
[767]
[768]
[769]
[770]
[771]
[772]
[773]
[774]
[775,null,null,null,null,{"$f":"IF(ISBLANK(E777),\"\",IF(EDATE(E777,12)>=$F$1,\"Nie\",\"Tak\"))","v":""},null,null,null,null,null,null,null,""]
[776,null,null,null,null,"",null,null,null,null,null,null,null,""]
[777,null,null,null,null,"",null,null,null,null,null,null,null,""]
[778,null,null,null,null,"",null,null,null,null,null,null,null,""]
[779,null,null,null,null,"",null,null,null,null,null,null,null,""]
[780,null,null,null,null,"",null,null,null,null,null,null,null,""]
[781,null,null,null,null,"",null,null,null,null,null,null,null,""]
[782,null,null,null,null,"",null,null,null,null,null,null,null,""]
[783,null,null,null,null,"",null,null,null,null,null,null,null,""]
[784,null,null,null,null,"",null,null,null,null,null,null,null,""]
[785,null,null,null,null,"",null,null,null,null,null,null,null,""]
[786,null,null,null,null,"",null,null,null,null,null,null,null,""]
[787,null,null,null,null,"",null,null,null,null,null,null,null,""]
[788,null,null,null,null,"",null,null,null,null,null,null,null,""]
[789,null,null,null,null,"",null,null,null,null,null,null,null,""]
[790,null,null,null,null,"",null,null,null,null,null,null,null,""]
[791,null,null,null,null,"",null,null,null,null,null,null,null,""]
[792,null,null,null,null,"",null,null,null,null,null,null,null,""]
[793,null,null,null,null,"",null,null,null,null,null,null,null,""]
[794,null,null,null,null,"",null,null,null,null,null,null,null,""]
[795,null,null,null,null,"",null,null,null,null,null,null,null,""]
[796,null,null,null,null,"",null,null,null,null,null,null,null,""]
[797,null,null,null,null,"",null,null,null,null,null,null,null,""]
[798,null,null,null,null,"",null,null,null,null,null,null,null,""]
[799,null,null,null,null,"",null,null,null,null,null,null,null,""]
[800,null,null,null,null,"",null,null,null,null,null,null,null,""]
[801,null,null,null,null,"",null,null,null,null,null,null,null,{"$f":"IF(OR(AND(COUNTBLANK(B803:G803)<6,COUNTBLANK(B803:G803)>0),AND(COUNTBLANK(H803:M803)>0,G803=\"Tak\"),AND(COUNTBLANK(H803:M803)<6,G803=\"Nie\")),\"Uzupełnij/popraw!\",\"\")","v":""}]
[802,null,null,null,null,"",null,null,null,null,null,null,null,""]
[803,null,null,null,null,"",null,null,null,null,null,null,null,""]
[804,null,null,null,null,"",null,null,null,null,null,null,null,""]
[805,null,null,null,null,"",null,null,null,null,null,null,null,""]
[806,null,null,null,null,"",null,null,null,null,null,null,null,""]
[807,null,null,null,null,"",null,null,null,null,null,null,null,""]
[808,null,null,null,null,"",null,null,null,null,null,null,null,""]
[809,null,null,null,null,"",null,null,null,null,null,null,null,""]
[810,null,null,null,null,"",null,null,null,null,null,null,null,""]
[811,null,null,null,null,"",null,null,null,null,null,null,null,""]
[812,null,null,null,null,"",null,null,null,null,null,null,null,""]
[813,null,null,null,null,{"$f":"IF(ISBLANK(E815),\"\",IF(EDATE(E815,12)>=$F$1,\"Nie\",\"Tak\"))","v":""},null,null,null,null,null,null,null,""]
[814,null,null,null,null,"",null,null,null,null,null,null,null,""]
[815,null,null,null,null,"",null,null,null,null,null,null,null,""]
[816,null,null,null,null,"",null,null,null,null,null,null,null,""]
[817,null,null,null,null,"",null,null,null,null,null,null,null,""]
[818,null,null,null,null,"",null,null,null,null,null,null,null,""]
[819,null,null,null,null,"",null,null,null,null,null,null,null,""]
[820,null,null,null,null,"",null,null,null,null,null,null,null,""]
[821,null,null,null,null,"",null,null,null,null,null,null,null,""]
[822,null,null,null,null,"",null,null,null,null,null,null,null,""]
[823,null,null,null,null,"",null,null,null,null,null,null,null,""]
[824,null,null,null,null,"",null,null,null,null,null,null,null,""]
[825,null,null,null,null,"",null,null,null,null,null,null,null,""]
[826,null,null,null,null,"",null,null,null,null,null,null,null,""]
[827,null,null,null,null,"",null,null,null,null,null,null,null,""]
[828,null,null,null,null,"",null,null,null,null,null,null,null,""]
[829,null,null,null,null,"",null,null,null,null,null,null,null,""]
[830,null,null,null,null,"",null,null,null,null,null,null,null,""]
[831,null,null,null,null,"",null,null,null,null,null,null,null,""]
[832,null,null,null,null,"",null,null,null,null,null,null,null,""]
[833,null,null,null,null,"",null,null,null,null,null,null,null,{"$f":"IF(OR(AND(COUNTBLANK(B835:G835)<6,COUNTBLANK(B835:G835)>0),AND(COUNTBLANK(H835:M835)>0,G835=\"Tak\"),AND(COUNTBLANK(H835:M835)<6,G835=\"Nie\")),\"Uzupełnij/popraw!\",\"\")","v":""}]
[834,null,null,null,null,"",null,null,null,null,null,null,null,""]
[835,null,null,null,null,"",null,null,null,null,null,null,null,""]
[836,null,null,null,null,"",null,null,null,null,null,null,null,""]
[837,null,null,null,null,"",null,null,null,null,null,null,null,""]
[838,null,null,null,null,"",null,null,null,null,null,null,null,""]
[839,null,null,null,null,"",null,null,null,null,null,null,null,""]
[840,null,null,null,null,"",null,null,null,null,null,null,null,""]
[841,null,null,null,null,"",null,null,null,null,null,null,null,""]
[842,null,null,null,null,"",null,null,null,null,null,null,null,""]
[843,null,null,null,null,"",null,null,null,null,null,null,null,""]
[844,null,null,null,null,"",null,null,null,null,null,null,null,""]
[845,null,null,null,null,"",null,null,null,null,null,null,null,""]
[846,null,null,null,null,"",null,null,null,null,null,null,null,""]
[847,null,null,null,null,"",null,null,null,null,null,null,null,""]
[848,null,null,null,null,"",null,null,null,null,null,null,null,""]
[849,null,null,null,null,"",null,null,null,null,null,null,null,""]
[850,null,null,null,null,"",null,null,null,null,null,null,null,""]
[851,null,null,null,null,"",null,null,null,null,null,null,null,""]
[852,null,null,null,null,"",null,null,null,null,null,null,null,""]
[853,null,null,null,null,"",null,null,null,null,null,null,null,""]
[854,null,null,null,null,"",null,null,null,null,null,null,null,""]
[855,null,null,null,null,"",null,null,null,null,null,null,null,""]
[856,null,null,null,null,"",null,null,null,null,null,null,null,""]
[857,null,null,null,null,"",null,null,null,null,null,null,null,""]
[858,null,null,null,null,"",null,null,null,null,null,null,null,""]
[859,null,null,null,null,"",null,null,null,null,null,null,null,""]
[860,null,null,null,null,"",null,null,null,null,null,null,null,""]
[861,null,null,null,null,"",null,null,null,null,null,null,null,""]
[862,null,null,null,null,"",null,null,null,null,null,null,null,""]
[863,null,null,null,null,"",null,null,null,null,null,null,null,""]
[864,null,null,null,null,"",null,null,null,null,null,null,null,""]
[865,null,null,null,null,"",null,null,null,null,null,null,null,{"$f":"IF(OR(AND(COUNTBLANK(B867:G867)<6,COUNTBLANK(B867:G867)>0),AND(COUNTBLANK(H867:M867)>0,G867=\"Tak\"),AND(COUNTBLANK(H867:M867)<6,G867=\"Nie\")),\"Uzupełnij/popraw!\",\"\")","v":""}]
[866,null,null,null,null,"",null,null,null,null,null,null,null,""]
[867,null,null,null,null,"",null,null,null,null,null,null,null,""]
[868,null,null,null,null,"",null,null,null,null,null,null,null,""]
[869,null,null,null,null,"",null,null,null,null,null,null,null,""]
[870,null,null,null,null,"",null,null,null,null,null,null,null,""]
[871,null,null,null,null,"",null,null,null,null,null,null,null,""]
[872,null,null,null,null,"",null,null,null,null,null,null,null,""]
[873,null,null,null,null,"",null,null,null,null,null,null,null,""]
[874,null,null,null,null,"",null,null,null,null,null,null,null,""]
[875,null,null,null,null,"",null,null,null,null,null,null,null,""]
[876,null,null,null,null,"",null,null,null,null,null,null,null,""]
[877,null,null,null,null,{"$f":"IF(ISBLANK(E879),\"\",IF(EDATE(E879,12)>=$F$1,\"Nie\",\"Tak\"))","v":""},null,null,null,null,null,null,null,""]
[878,null,null,null,null,"",null,null,null,null,null,null,null,""]
[879,null,null,null,null,"",null,null,null,null,null,null,null,""]
[880,null,null,null,null,"",null,null,null,null,null,null,null,""]
[881,null,null,null,null,"",null,null,null,null,null,null,null,""]
[882,null,null,null,null,"",null,null,null,null,null,null,null,""]
[883,null,null,null,null,"",null,null,null,null,null,null,null,""]
[884,null,null,null,null,"",null,null,null,null,null,null,null,""]
[885,null,null,null,null,"",null,null,null,null,null,null,null,""]
[886,null,null,null,null,"",null,null,null,null,null,null,null,""]
[887,null,null,null,null,"",null,null,null,null,null,null,null,""]
[888,null,null,null,null,"",null,null,null,null,null,null,null,""]
[889,null,null,null,null,"",null,null,null,null,null,null,null,""]
[890,null,null,null,null,"",null,null,null,null,null,null,null,""]
[891,null,null,null,null,"",null,null,null,null,null,null,null,""]
[892,null,null,null,null,"",null,null,null,null,null,null,null,""]
[893,null,null,null,null,"",null,null,null,null,null,null,null,""]
[894,null,null,null,null,"",null,null,null,null,null,null,null,""]
[895,null,null,null,null,"",null,null,null,null,null,null,null,""]
[896,null,null,null,null,"",null,null,null,null,null,null,null,""]
[897,null,null,null,null,"",null,null,null,null,null,null,null,{"$f":"IF(OR(AND(COUNTBLANK(B899:G899)<6,COUNTBLANK(B899:G899)>0),AND(COUNTBLANK(H899:M899)>0,G899=\"Tak\"),AND(COUNTBLANK(H899:M899)<6,G899=\"Nie\")),\"Uzupełnij/popraw!\",\"\")","v":""}]
[898,null,null,null,null,"",null,null,null,null,null,null,null,""]
[899,null,null,null,null,"",null,null,null,null,null,null,null,""]
[900,null,null,null,null,"",null,null,null,null,null,null,null,""]
[901,null,null,null,null,"",null,null,null,null,null,null,null,""]
[902,null,null,null,null,"",null,null,null,null,null,null,null,""]
[903,null,null,null,null,"",null,null,null,null,null,null,null,""]
[904,null,null,null,null,"",null,null,null,null,null,null,null,""]
[905,null,null,null,null,"",null,null,null,null,null,null,null,""]
[906,null,null,null,null,"",null,null,null,null,null,null,null,""]
[907,null,null,null,null,"",null,null,null,null,null,null,null,""]
[908,null,null,null,null,"",null,null,null,null,null,null,null,""]
[909,null,null,null,null,"",null,null,null,null,null,null,null,""]
[910,null,null,null,null,"",null,null,null,null,null,null,null,""]
[911,null,null,null,null,"",null,null,null,null,null,null,null,""]
[912,null,null,null,null,"",null,null,null,null,null,null,null,""]
[913,null,null,null,null,"",null,null,null,null,null,null,null,""]
[914,null,null,null,null,"",null,null,null,null,null,null,null,""]
[915,null,null,null,null,"",null,null,null,null,null,null,null,""]
[916,null,null,null,null,"",null,null,null,null,null,null,null,""]
[917,null,null,null,null,"",null,null,null,null,null,null,null,""]
[918,null,null,null,null,"",null,null,null,null,null,null,null,""]
[919,null,null,null,null,"",null,null,null,null,null,null,null,""]
[920,null,null,null,null,"",null,null,null,null,null,null,null,""]
[921,null,null,null,null,"",null,null,null,null,null,null,null,""]
[922,null,null,null,null,"",null,null,null,null,null,null,null,""]
[923,null,null,null,null,"",null,null,null,null,null,null,null,""]
[924,null,null,null,null,"",null,null,null,null,null,null,null,""]
[925,null,null,null,null,"",null,null,null,null,null,null,null,""]
[926,null,null,null,null,"",null,null,null,null,null,null,null,""]
[927,null,null,null,null,"",null,null,null,null,null,null,null,""]
[928,null,null,null,null,"",null,null,null,null,null,null,null,""]
[929,null,null,null,null,"",null,null,null,null,null,null,null,{"$f":"IF(OR(AND(COUNTBLANK(B931:G931)<6,COUNTBLANK(B931:G931)>0),AND(COUNTBLANK(H931:M931)>0,G931=\"Tak\"),AND(COUNTBLANK(H931:M931)<6,G931=\"Nie\")),\"Uzupełnij/popraw!\",\"\")","v":""}]
[930,null,null,null,null,"",null,null,null,null,null,null,null,""]
[931,null,null,null,null,"",null,null,null,null,null,null,null,""]
[932,null,null,null,null,"",null,null,null,null,null,null,null,""]
[933]
[934]
[935]
[936]
[937]
[938]
[939]
[940]
[941]
[942]
[943]
[944]
[945]
[946]
[947]
[948]
[949]
[950]
[951]
[952]
[953]
[954]
[955]
[956]
[957]
[958]
[959]
[960]
[961]
[962]
[963]
[964]
[965]
[966]
[967,null,null,null,null,"",null,null,null,null,null,null,null,""]
[968,null,null,null,null,"",null,null,null,null,null,null,null,""]
[969,null,null,null,null,"",null,null,null,null,null,null,null,""]
[970,null,null,null,null,"",null,null,null,null,null,null,null,""]
[971,null,null,null,null,"",null,null,null,null,null,null,null,""]
[972,null,null,null,null,"",null,null,null,null,null,null,null,""]
[973,null,null,null,null,"",null,null,null,null,null,null,null,""]
[974,null,null,null,null,"",null,null,null,null,null,null,null,""]
[975,null,null,null,null,{"$f":"IF(ISBLANK(E977),\"\",IF(EDATE(E977,12)>=$F$1,\"Nie\",\"Tak\"))","v":""},null,null,null,null,null,null,null,""]
[976,null,null,null,null,"",null,null,null,null,null,null,null,""]
[977,null,null,null,null,"",null,null,null,null,null,null,null,""]
[978,null,null,null,null,"",null,null,null,null,null,null,null,""]
[979,null,null,null,null,"",null,null,null,null,null,null,null,""]
[980,null,null,null,null,"",null,null,null,null,null,null,null,""]
[981,null,null,null,null,"",null,null,null,null,null,null,null,""]
[982,null,null,null,null,"",null,null,null,null,null,null,null,""]
[983,null,null,null,null,"",null,null,null,null,null,null,null,""]
[984,null,null,null,null,"",null,null,null,null,null,null,null,""]
[985,null,null,null,null,"",null,null,null,null,null,null,null,""]
[986,null,null,null,null,"",null,null,null,null,null,null,null,""]
[987,null,null,null,null,"",null,null,null,null,null,null,null,""]
[988,null,null,null,null,"",null,null,null,null,null,null,null,""]
[989,null,null,null,null,"",null,null,null,null,null,null,null,""]
[990,null,null,null,null,"",null,null,null,null,null,null,null,""]
[991,null,null,null,null,"",null,null,null,null,null,null,null,""]
[992,null,null,null,null,"",null,null,null,null,null,null,null,""]
[993,null,null,null,null,"",null,null,null,null,null,null,null,""]
[994,null,null,null,null,"",null,null,null,null,null,null,null,""]
[995,null,null,null,null,"",null,null,null,null,null,null,null,{"$f":"IF(OR(AND(COUNTBLANK(B997:G997)<6,COUNTBLANK(B997:G997)>0),AND(COUNTBLANK(H997:M997)>0,G997=\"Tak\"),AND(COUNTBLANK(H997:M997)<6,G997=\"Nie\")),\"Uzupełnij/popraw!\",\"\")","v":""}]
[996,null,null,null,null,"",null,null,null,null,null,null,null,""]
[997,null,null,null,null,"",null,null,null,null,null,null,null,""]
[998,null,null,null,null,"",null,null,null,null,null,null,null,""]
[999,null,null,null,null,"",null,null,null,null,null,null,null,""]
[1000,null,null,null,null,"",null,null,null,null,null,null,null,""]

{"sheet":"Podsumowanie","index":1,"n_rows":35,"n_cols":3,"rows_kept":35,"cut":false,"hidden":true,"merged":[[0,1,1,1]]}
["Liczba członków klastra (bez koordynatora)",{"$f":"COUNTA('Członkowie klastra'!C:C)-1","v":0}]
["w tym:"]
["przedsiębiorcy",{"$f":"COUNTIF('Członkowie klastra'!G:G,\"Tak\")","v":0}]
["przedsiębiorcy - skorygowane o powiąznia i parterstwa",{"$f":"COUNTIF('Członkowie klastra'!H:H,0)","v":0}]
["nie będący przedsiębiorcami",{"$f":"COUNTIF('Członkowie klastra'!G:G,\"Nie\")","v":0}]
["czlonkowie razem - skorygowane o powiązania i partnerstwa (bez koordynatora)",{"$f":"B4+B5","v":0}]
[]
["Suma zatrudnienia w przedsiębiorstwach klastra (wszystkie kategorie zatrudnienia)",{"$f":"SUM('Członkowie klastra'!I:I)","v":0}]
["Suma zatrudnienia w przedsiębiorstwach klastra (tylko umowy o pracę)",{"$f":"SUM('Członkowie klastra'!J:J)","v":0}]
[]
["Przedsiębiorstwa wchodzące w skład klastra prowadzące działalność B+R w ostatnim zakończonym roku obrotowym  (%)",{"$f":"COUNTIFS('Członkowie klastra'!K:K,\">0\")/Podsumowanie!B3","v":{"$error":"#DIV/0!"}}]
["Przedsiębiorstwa wchodzące w skład klastra, które wprowadziły innowację produktową lub procesową  powiązaną z procesem produkcji w ostatnim zakończonym roku obrotowym (%)",{"$f":"COUNTIF('Członkowie klastra'!L:L,\"tak\")/Podsumowanie!B3","v":{"$error":"#DIV/0!"}}]
["Przedsiębiorstwa wchodzące w skład klastra prowadzące działalność eksportową  (%)",{"$f":"COUNTIF('Członkowie klastra'!M:M,\"tak\")/Podsumowanie!B3","v":{"$error":"#DIV/0!"}}]
["Udział członków będących w klastrze powyżej 1 roku",{"$f":"COUNTIF('Członkowie klastra'!F:F,\"Tak\")/(COUNTIF('Członkowie klastra'!F:F,\"Tak\")+COUNTIF('Członkowie klastra'!F:F,\"Nie\"))","v":{"$error":"#DIV/0!"}}]
[]
["Rozkład geograficzny:","liczba","procent"]
["dolnośląskie",{"$f":"COUNTIF('Członkowie klastra'!D:D,Podsumowanie!A17)","v":0},{"$f":"B17/$B$33","v":{"$error":"#DIV/0!"}}]
["kujawsko-pomorskie",{"$f":"COUNTIF('Członkowie klastra'!D:D,Podsumowanie!A18)","v":0},{"$f":"B18/$B$33","v":{"$error":"#DIV/0!"}}]
["lubelskie",{"$f":"COUNTIF('Członkowie klastra'!D:D,Podsumowanie!A19)","v":0},{"$error":"#DIV/0!"}]
["lubuskie",{"$f":"COUNTIF('Członkowie klastra'!D:D,Podsumowanie!A20)","v":0},{"$error":"#DIV/0!"}]
["łódzkie",{"$f":"COUNTIF('Członkowie klastra'!D:D,Podsumowanie!A21)","v":0},{"$error":"#DIV/0!"}]
["małopolskie",{"$f":"COUNTIF('Członkowie klastra'!D:D,Podsumowanie!A22)","v":0},{"$error":"#DIV/0!"}]
["mazowieckie",{"$f":"COUNTIF('Członkowie klastra'!D:D,Podsumowanie!A23)","v":0},{"$error":"#DIV/0!"}]
["opolskie",{"$f":"COUNTIF('Członkowie klastra'!D:D,Podsumowanie!A24)","v":0},{"$error":"#DIV/0!"}]
["podkarpackie",{"$f":"COUNTIF('Członkowie klastra'!D:D,Podsumowanie!A25)","v":0},{"$error":"#DIV/0!"}]
["podlaskie",{"$f":"COUNTIF('Członkowie klastra'!D:D,Podsumowanie!A26)","v":0},{"$error":"#DIV/0!"}]
["pomorskie",{"$f":"COUNTIF('Członkowie klastra'!D:D,Podsumowanie!A27)","v":0},{"$error":"#DIV/0!"}]
["śląskie",{"$f":"COUNTIF('Członkowie klastra'!D:D,Podsumowanie!A28)","v":0},{"$error":"#DIV/0!"}]
["świętokrzyskie",{"$f":"COUNTIF('Członkowie klastra'!D:D,Podsumowanie!A29)","v":0},{"$error":"#DIV/0!"}]
["warmińsko-mazurskie",{"$f":"COUNTIF('Członkowie klastra'!D:D,Podsumowanie!A30)","v":0},{"$error":"#DIV/0!"}]
["wielkopolskie",{"$f":"COUNTIF('Członkowie klastra'!D:D,Podsumowanie!A31)","v":0},{"$error":"#DIV/0!"}]
["zachodniopomorskie",{"$f":"COUNTIF('Członkowie klastra'!D:D,Podsumowanie!A32)","v":0},{"$error":"#DIV/0!"}]
["suma",{"$f":"SUM(B17:B32)","v":0},{"$f":"SUM(C17:C32)","v":{"$error":"#DIV/0!"}}]
[]
["Wiersze z danymi do uzupełnienia lub poprawy",{"$f":"COUNTIF('Członkowie klastra'!N:N,\"Uzupełnij/popraw!\")","v":0}]

{"sheet":"Ekran_powitalny","index":2,"n_rows":4,"n_cols":2,"rows_kept":4,"cut":false,"hidden":false,"merged":[]}
[]
[null,"Uprzejmie prosimy o włączenie makr (\"Włącz zawatość\")."]
[null,"Makra zapewniają zgodność edycji z formularzem."]
[null,"Przed zaakceptowaniem makr, edycja dokumentu będzie niemożliwa."]